lending/lending_fUSD_20260312
["ID","MTS","AMOUNT","RATE_DAILY","PERIOD"]
[408283184,1773351032459,-258.51798041,0.0001455,2]
[408283185,1773351032468,-145930.51839558,0.00014551,2]
[408283186,1773351032483,-16348.21767609,0.00014551,2]
[408283187,1773351032494,-63360.82999499,0.00014551,2]
[408283188,1773351032505,-57778.4773778,0.00014551,2]
[408283189,1773351032521,-2926.09408268,0.00014551,2]
[408283190,1773351032536,-1000.0,0.00014551,2]
[408283191,1773351032548,-1842.25024033,0.00014551,2]
[408283192,1773351032559,-3892.91007825,0.00014551,2]
[408283193,1773351032570,-811.50471421,0.00014551,2]
[408283194,1773351032581,-2916.85001972,0.00014551,2]
[408283205,1773351037652,-4239.58133123,0.00014551,2]
[408283207,1773351037663,-931057.42778912,0.00014551,2]
[408283209,1773351037673,-500.0,0.00014573,2]
[408283211,1773351037682,-371.73960843,0.00014573,2]
[408283213,1773351037692,-619.71855644,0.00014573,2]
[408283215,1773351037701,-500.0,0.00014573,2]
[408283217,1773351037711,-500.0,0.00014573,2]
[408283219,1773351037720,-165.01569282,0.00014573,2]
[408283221,1773351037729,-500.0,0.00014573,2]
[408283223,1773351037739,-312.31798352,0.00014573,2]
[408283225,1773351037748,-500.0,0.00014573,2]
[408283227,1773351037758,-500.0,0.00014573,2]
[408283229,1773351037767,-500.0,0.00014573,2]
[408283231,1773351037776,-500.0,0.00014573,2]
[408283233,1773351037785,-499.46578139,0.00014573,2]
[408283235,1773351037794,-500.0,0.00014573,2]
[408283237,1773351037804,-815.99709557,0.00014573,2]
[408283239,1773351037813,-1183.81,0.00014627,2]
[408283240,1773351037822,-32942.6924,0.00014643,2]
[408283242,1773351037831,-1000.0,0.00014643,2]
[408283243,1773351037840,-458.0,0.00014698,2]
[408283244,1773351037850,-1943.0,0.00014707,2]
[408283245,1773351037859,-327.0,0.00014712,2]
[408283246,1773351037869,-208.0,0.00014728,2]
[408283247,1773351037879,-334.0,0.00014732,2]
[408283248,1773351037888,-1243.0,0.00014737,2]
[408283249,1773351037898,-500.0,0.00014742,2]
[408283250,1773351037907,-500.0,0.00014742,2]
[408283251,1773351037918,-500.0,0.00014742,2]
[408283252,1773351037928,-500.0,0.00014742,2]
[408283253,1773351037937,-548.09996795,0.00014742,2]
[408283254,1773351037948,-500.0,0.00014742,2]
[408283255,1773351037957,-500.0,0.00014742,2]
[408283256,1773351037966,-500.0,0.00014742,2]
[408283257,1773351037975,-500.0,0.00014742,2]
[408283258,1773351037986,-500.0,0.00014742,2]
[408283259,1773351037995,-500.0,0.00014742,2]
[408283260,1773351038004,-500.0,0.00014742,2]
[408283261,1773351038018,-500.0,0.00014742,2]
[408283262,1773351038027,-500.0,0.00014742,2]
[408283263,1773351038037,-500.0,0.00014742,2]
[408283264,1773351038046,-500.0,0.00014742,2]
[408283265,1773351038055,-500.0,0.00014742,2]
[408283266,1773351038064,-500.0,0.00014742,2]
[408283267,1773351038074,-484.25426362,0.00014742,2]
[408283268,1773351038084,-500.0,0.00014742,2]
[408283269,1773351038094,-500.0,0.00014742,2]
[408283270,1773351038103,-500.0,0.00014742,2]
[408283271,1773351038113,-500.0,0.00014742,2]
[408283272,1773351038123,-500.0,0.00014742,2]
[408283273,1773351038133,-500.0,0.00014742,2]
[408283274,1773351038143,-500.0,0.00014742,2]
[408283275,1773351038152,-500.0,0.00014742,2]
[408283276,1773351038161,-500.0,0.00014742,2]
[408283277,1773351038170,-500.0,0.00014742,2]
[408283278,1773351038180,-500.0,0.00014742,2]
[408283279,1773351038190,-500.0,0.00014742,2]
[408283280,1773351038198,-500.0,0.00014742,2]
[408283281,1773351038208,-500.0,0.00014742,2]
[408283282,1773351038218,-500.0,0.00014742,2]
[408283283,1773351038227,-500.0,0.00014742,2]
[408283284,1773351038237,-500.0,0.00014742,2]
[408283285,1773351038248,-500.0,0.00014742,2]
[408283286,1773351038258,-500.0,0.00014742,2]
[408283287,1773351038268,-500.0,0.00014742,2]
[408283288,1773351038278,-500.0,0.00014742,2]
[408283289,1773351038287,-500.0,0.00014742,2]
[408283290,1773351038296,-500.0,0.00014742,2]
[408283291,1773351038307,-566.79968015,0.00014742,2]
[408283292,1773351038315,-500.0,0.0001475,2]
[408283293,1773351038325,-500.0,0.00014751,2]
[408283294,1773351038334,-586.04621402,0.00014751,2]
[408283295,1773351038343,-274.0,0.00014757,2]
[408283296,1773351038352,-322.0,0.00014762,2]
[408283297,1773351038366,-708.0,0.00014766,2]
[408283298,1773351038375,-1021.92,0.00014773,2]
[408283299,1773351038384,-381.0,0.00014773,2]
[408283300,1773351038393,-4881.97,0.00014782,2]
[408283301,1773351038404,-281.0,0.00014791,2]
[408283302,1773351038414,-152.17,0.00014791,2]
[408283303,1773351038423,-4000.0,0.00014793,2]
[408283304,1773351038434,-639.0,0.00014795,2]
[408283305,1773351038443,-1272.0,0.00014803,2]
[408283306,1773351038452,-286.0,0.0001481,2]
[408283307,1773351038461,-186.0,0.00014821,2]
[408283308,1773351038472,-977.0,0.00014825,2]
[408283309,1773351038482,-939.0,0.00014832,2]
[408283310,1773351038491,-1019.0,0.00014854,2]
[408283311,1773351038501,-914.0,0.00014862,2]
[408283312,1773351038511,-1289.0,0.00014891,2]
[408283313,1773351038522,-678.98627159,0.000149,2]
[408283314,1773351038532,-1740.28783138,0.000149,2]
[408283315,1773351038542,-1547.30534808,0.000149,2]
[408283316,1773351038551,-1725.31742679,0.000149,2]
[408283317,1773351038560,-186.55730651,0.000149,2]
[408283318,1773351038569,-250.21216312,0.000149,2]
[408283319,1773351038578,-263.69139076,0.000149,2]
[408283320,1773351038588,-267.05891092,0.000149,2]
[408283321,1773351038597,-15400.0,0.000149,5]
[408283322,1773351038606,-5533.0,0.000149,5]
[408283323,1773351038615,-223.0,0.00014921,2]
[408283324,1773351038624,-443.0,0.0001495,2]
[408283325,1773351038634,-1179.0,0.0001498,2]
[408283326,1773351038644,-14892.84270093,0.00015,2]
[408283327,1773351038655,-250.0,0.00015,2]
[408283328,1773351038667,-500.0,0.00015,30]
[408283329,1773351038676,-500.0,0.00015,30]
[408283330,1773351038686,-941.81066277,0.00015,30]
[408283331,1773351038697,-500.0,0.00015,30]
[408283332,1773351038707,-500.0,0.00015,30]
[408283333,1773351038718,-500.0,0.00015,30]
[408283334,1773351038727,-500.0,0.00015,30]
[408283335,1773351038736,-500.0,0.00015,30]
[408283336,1773351038745,-500.0,0.00015,30]
[408283337,1773351038755,-500.0,0.00015,30]
[408283338,1773351038764,-500.0,0.00015,30]
[408283339,1773351038773,-506.55607891,0.00015,30]
[408283340,1773351038785,-500.0,0.00015,30]
[408283341,1773351038794,-500.0,0.00015,30]
[408283342,1773351038804,-500.0,0.00015,30]
[408283343,1773351038813,-814.70211509,0.00015,30]
[408283344,1773351038823,-500.0,0.00015,30]
[408283345,1773351038832,-500.0,0.00015,30]
[408283346,1773351038841,-500.0,0.00015,30]
[408283347,1773351038851,-500.0,0.00015,30]
[408283348,1773351038860,-500.0,0.00015,30]
[408283349,1773351038869,-500.0,0.00015,30]
[408283350,1773351038878,-500.0,0.00015,30]
[408283351,1773351038890,-500.0,0.00015,30]
[408283352,1773351038899,-500.0,0.00015,30]
[408283353,1773351038908,-500.0,0.00015,30]
[408283354,1773351038918,-998.30044391,0.00015,30]
[408283355,1773351038927,-500.0,0.00015,30]
[408283356,1773351038936,-500.0,0.00015,30]
[408283357,1773351038945,-500.0,0.00015,30]
[408283358,1773351038954,-500.0,0.00015,30]
[408283359,1773351038962,-200.0,0.00015039,2]
[408283360,1773351038972,-1021.92,0.00015047,2]
[408283361,1773351038981,-1000.0,0.00015121,2]
[408283362,1773351038989,-1000.0,0.00015121,2]
[408283363,1773351038999,-1000.0,0.00015121,2]
[408283364,1773351039008,-1000.0,0.00015121,2]
[408283365,1773351039016,-1000.0,0.00015121,2]
[408283366,1773351039025,-1000.0,0.00015121,2]
[408283367,1773351039034,-1000.0,0.00015121,2]
[408283368,1773351039043,-1000.0,0.00015121,2]
[408283369,1773351039052,-500.0,0.00015121,2]
[408283370,1773351039061,-4000.0,0.00015137,2]
[408283371,1773351039071,-9999.99,0.0001531,2]
[408283372,1773351039080,-17495.4,0.0001531,2]
[408283373,1773351039089,-13682.15,0.0001531,2]
[408283374,1773351039099,-1021.92,0.00015321,2]
[408283375,1773351039283,-166.66,0.00015346,2]
[408283376,1773351039293,-1183.81,0.00015358,2]
[408283377,1773351039302,-500.0,0.00015373,2]
[408283378,1773351039311,-15776.64529517,0.00015442,2]
[408283379,1773351039320,-164.00773729,0.0001548,2]
[408283380,1773351039329,-500.0,0.0001548,2]
[408283381,1773351039338,-500.0,0.0001548,2]
[408283382,1773351039347,-445.92650306,0.0001548,2]
[408283383,1773351039359,-500.0,0.0001548,2]
[408283384,1773351039369,-1176.23,0.00015562,2]
[408283385,1773351039378,-200.0,0.00015587,2]
[408283386,1773351039388,-1021.92,0.00015595,2]
[408283387,1773351039399,-249.28,0.00015595,2]
[408283388,1773351039409,-255.0,0.00015601,2]
[408283389,1773351039419,-152.17,0.00015661,2]
[408283390,1773351039428,-360.72006406,0.00015668,2]
[408283391,1773351039438,-1500.0,0.00015668,2]
[408283392,1773351039447,-1500.0,0.00015668,2]
[408283393,1773351039456,-1500.0,0.00015668,2]
[408283394,1773351039466,-1500.0,0.00015668,2]
[408283395,1773351039476,-1500.0,0.00015668,2]
[408283396,1773351039485,-1500.0,0.00015668,2]
[408283397,1773351039494,-893.08543644,0.00015668,2]
[408283398,1773351039504,-500.0,0.00015673,2]
[408283399,1773351039513,-500.0,0.00015673,2]
[408283400,1773351039523,-500.0,0.00015673,2]
[408283401,1773351039532,-420.0,0.00015821,2]
[408283402,1773351039542,-166.66,0.00015853,2]
[408283403,1773351039551,-1021.92,0.00015869,2]
[408283404,1773351039560,-250.0,0.00015892,2]
[408283405,1773351039570,-5000.0,0.00015892,2]
[408283406,1773351039580,-287.27422917,0.00015892,2]
[408283407,1773351039589,-300.0,0.00015893,2]
[408283408,1773351039599,-600.0,0.00015893,2]
[408283409,1773351039609,-500.0,0.00015893,2]
[408283410,1773351039618,-1680.0,0.00015893,2]
[408283411,1773351039627,-225.97976062,0.00015921,2]
[408283412,1773351039636,-3173.57426313,0.0001596,2]
[408283413,1773351039646,-150.0,0.00016,2]
[408283414,1773351039655,-150.0,0.00016,2]
[408283415,1773351039664,-150.0,0.00016,2]
[408283416,1773351039674,-1000.0,0.00016028,2]
[408283417,1773351039684,-168.3299599,0.00016028,2]
[408283418,1773351039693,-1183.81,0.0001609,2]
[408283419,1773351039703,-200.0,0.00016135,2]
[408283420,1773351039715,-1021.92,0.00016143,2]
[408283421,1773351039724,-402.55546271,0.00016216,2]
[408283422,1773351039734,-526.17740878,0.00016216,2]
[408283423,1773351039745,-2000.0,0.00016216,2]
[408283424,1773351039753,-2003.02080856,0.00016216,2]
[408283425,1773351039764,-2000.0,0.00016216,2]
[408283426,1773351039773,-1000.0,0.00016221,2]
[408283427,1773351039783,-500.0,0.00016322,2]
[408283428,1773351039795,-283.69039474,0.00016322,2]
[408283429,1773351039805,-166.66,0.00016359,2]
[408283430,1773351039814,-15776.64529517,0.0001641,2]
[408283431,1773351039823,-500.0,0.00016411,2]
[408283432,1773351039833,-1021.96,0.00016417,2]
[408283433,1773351039843,-152.17,0.00016532,2]
[408283434,1773351039852,-500.0,0.00016543,2]
[408283435,1773351039862,-1500.0,0.00016576,2]
[408283436,1773351039872,-500.0,0.00016592,2]
[408283437,1773351039882,-164.47026524,0.00016592,2]
[408283438,1773351039891,-500.0,0.00016592,2]
[408283439,1773351039902,-161.35927651,0.00016592,2]
[408283440,1773351039911,-164.24586283,0.00016592,2]
[408283441,1773351039921,-200.0,0.00016683,2]
[408283442,1773351039933,-150.0,0.00016743,2]
[408283443,1773351039944,-150.0,0.00016743,2]
[408283444,1773351039954,-150.0,0.00016743,2]
[408283445,1773351039968,-150.0,0.00016743,2]
[408283446,1773351039978,-500.0,0.00016743,2]
[408283447,1773351039988,-154.6362155,0.00016743,2]
[408283448,1773351040000,-150.0,0.00016743,2]
[408283449,1773351040010,-500.0,0.00016743,2]
[408283450,1773351040021,-150.0,0.00016743,2]
[408283451,1773351040031,-500.0,0.00016743,2]
[408283452,1773351040042,-150.0,0.00016743,2]
[408283453,1773351040052,-150.0,0.00016743,2]
[408283454,1773351040062,-150.0,0.00016743,2]
[408283455,1773351040072,-500.0,0.00016743,2]
[408283456,1773351040082,-150.0,0.00016743,2]
[408283457,1773351040091,-150.0,0.00016743,2]
[408283458,1773351040101,-211.07,0.00016743,2]
[408283459,1773351040111,-150.0,0.00016743,2]
[408283460,1773351040120,-150.0,0.00016743,2]
[408283461,1773351040129,-500.0,0.00016743,2]
[408283462,1773351040139,-500.0,0.00016743,2]
[408283463,1773351040148,-500.0,0.00016743,2]
[408283464,1773351040157,-500.0,0.00016743,2]
[408283465,1773351040166,-500.0,0.00016743,2]
[408283467,1773351040175,-500.0,0.00016743,2]
[408283468,1773351040184,-500.0,0.00016743,2]
[408283469,1773351040194,-150.0,0.00016743,2]
[408283470,1773351040203,-500.0,0.00016743,2]
[408283471,1773351040213,-500.0,0.00016743,2]
[408283472,1773351040222,-500.0,0.00016743,2]
[408283473,1773351040231,-500.0,0.00016743,2]
[408283474,1773351040240,-150.0,0.00016743,2]
[408283475,1773351040250,-500.0,0.00016743,2]
[408283476,1773351040259,-500.0,0.00016743,2]
[408283477,1773351040269,-150.0,0.00016743,2]
[408283478,1773351040278,-500.0,0.00016743,2]
[408283479,1773351040287,-500.0,0.00016743,2]
[408283480,1773351040296,-500.0,0.00016743,2]
[408283481,1773351040305,-500.0,0.00016743,2]
[408283482,1773351040314,-150.0,0.00016743,2]
[408283483,1773351040323,-150.0,0.00016743,2]
[408283484,1773351040332,-500.0,0.00016743,2]
[408283485,1773351040341,-500.0,0.00016743,2]
[408283486,1773351040350,-520.0,0.00016743,2]
[408283487,1773351040362,-500.0,0.00016743,2]
[408283488,1773351040372,-500.0,0.0001675,2]
[408283489,1773351040382,-500.0,0.0001675,2]
[408283490,1773351040391,-2500.0,0.00016764,2]
[408283491,1773351040403,-2500.0,0.00016764,2]
[408283492,1773351040412,-810.60221638,0.00016768,2]
[408283493,1773351040422,-150.14054899,0.00016798,2]
[408283494,1773351040431,-150.38339506,0.00016798,2]
[408283495,1773351040444,-150.0,0.00016798,2]
[408283496,1773351040453,-150.0,0.00016798,2]
[408283497,1773351040462,-500.0,0.00016798,2]
[408283498,1773351040472,-500.0,0.00016798,2]
[408283499,1773351040481,-150.0,0.00016798,2]
[408283500,1773351040490,-150.0,0.00016798,2]
[408283501,1773351040499,-151.17604602,0.00016798,2]
[408283502,1773351040509,-500.0,0.00016798,2]
[408283503,1773351040518,-150.5231356,0.00016798,2]
[408283504,1773351040527,-150.36304931,0.00016798,2]
[408283505,1773351040537,-506.37193097,0.00016798,2]
[408283506,1773351040546,-150.0,0.00016798,2]
[408283507,1773351040556,-206.99792004,0.00016798,2]
[408283508,1773351040565,-150.0,0.00016798,2]
[408283509,1773351040574,-500.0,0.00016798,2]
[408283510,1773351040583,-500.0,0.00016798,2]
[408283511,1773351040593,-500.0,0.00016798,2]
[408283512,1773351040602,-150.0,0.00016798,2]
[408283513,1773351040612,-500.0,0.00016798,2]
[408283514,1773351040621,-500.0,0.00016798,2]
[408283515,1773351040631,-500.0,0.00016798,2]
[408283516,1773351040640,-500.0,0.00016798,2]
[408283517,1773351040649,-150.0,0.00016798,2]
[408283518,1773351040658,-500.0,0.00016798,2]
[408283519,1773351040668,-500.0,0.00016798,2]
[408283520,1773351040677,-637.81160901,0.00016798,2]
[408283521,1773351040687,-600.74757442,0.00016798,2]
[408283522,1773351040696,-150.0,0.00016798,2]
[408283523,1773351040706,-500.0,0.00016798,2]
[408283524,1773351040716,-500.0,0.00016798,2]
[408283525,1773351040726,-150.20209622,0.00016798,2]
[408283526,1773351040735,-500.0,0.00016798,2]
[408283527,1773351040745,-500.0,0.00016798,2]
[408283528,1773351040755,-500.0,0.00016798,2]
[408283529,1773351040764,-500.0,0.00016798,2]
[408283530,1773351040774,-501.10057062,0.00016798,2]
[408283531,1773351040783,-500.0,0.00016798,2]
[408283532,1773351040792,-520.0,0.00016798,2]
[408283533,1773351040802,-500.0,0.00016798,2]
[408283534,1773351040811,-433.0,0.00016816,2]
[408283535,1773351040820,-1183.81,0.00016821,2]
[408283536,1773351040830,-150.0,0.00016853,2]
[408283537,1773351040839,-150.0,0.00016853,2]
[408283538,1773351040848,-500.0,0.00016853,2]
[408283539,1773351040858,-300.0,0.00016853,2]
[408283540,1773351040867,-200.0,0.00016853,2]
[408283541,1773351040882,-150.0,0.00016853,2]
[408283542,1773351040892,-300.0,0.00016853,2]
[408283543,1773351040902,-150.0,0.00016853,2]
[408283544,1773351040911,-150.0,0.00016853,2]
[408283545,1773351040921,-500.0,0.00016853,2]
[408283546,1773351040930,-500.0,0.00016853,2]
[408283547,1773351040940,-500.0,0.00016853,2]
[408283548,1773351040950,-500.0,0.00016853,2]
[408283549,1773351040961,-500.0,0.00016853,2]
[408283550,1773351040971,-500.0,0.00016853,2]
[408283551,1773351040980,-500.0,0.00016853,2]
[408283552,1773351040990,-150.0,0.00016853,2]
[408283553,1773351041000,-500.0,0.00016853,2]
[408283554,1773351041010,-601.04601421,0.00016853,2]
[408283555,1773351041020,-150.0,0.00016853,2]
[408283556,1773351041030,-500.0,0.00016853,2]
[408283557,1773351041040,-150.0,0.00016853,2]
[408283558,1773351041049,-500.0,0.00016853,2]
[408283559,1773351041059,-500.0,0.00016853,2]
[408283560,1773351041069,-159.8782102,0.00016853,2]
[408283561,1773351041079,-500.0,0.00016853,2]
[408283562,1773351041088,-500.0,0.00016853,2]
[408283563,1773351041098,-151.97192574,0.00016853,2]
[408283564,1773351041108,-520.0,0.00016853,2]
[408283565,1773351041117,-156.83426636,0.00016853,2]
[408283566,1773351041127,-166.66,0.00016866,2]
[408283567,1773351041138,-500.0,0.00016888,2]
[408283568,1773351041147,-500.30661953,0.00016888,2]
[408283569,1773351041157,-500.19685753,0.00016906,2]
[408283570,1773351041167,-338.73579569,0.00016906,2]
[408283571,1773351041177,-552.0,0.00016907,2]
[408283572,1773351041187,-150.0,0.00016907,2]
[408283573,1773351041197,-275.17021168,0.00016907,2]
[408283574,1773351041206,-500.0,0.00016907,2]
[408283575,1773351041216,-500.0,0.00016907,2]
[408283576,1773351041225,-500.0,0.00016907,2]
[408283577,1773351041235,-500.0,0.00016907,2]
[408283578,1773351041245,-500.0,0.00016907,2]
[408283579,1773351041255,-500.0,0.00016907,2]
[408283580,1773351041265,-500.0,0.00016907,2]
[408283581,1773351041275,-150.0,0.00016907,2]
[408283582,1773351041284,-500.0,0.00016907,2]
[408283583,1773351041294,-150.0,0.00016907,2]
[408283584,1773351041303,-500.0,0.00016907,2]
[408283585,1773351041313,-250.58262965,0.00016907,2]
[408283586,1773351041322,-264.48543571,0.00016907,2]
[408283587,1773351041331,-606.55779082,0.00016907,2]
[408283588,1773351041340,-500.0,0.00016907,2]
[408283589,1773351041350,-500.0,0.00016907,2]
[408283590,1773351041364,-520.0,0.00016907,2]
[408283591,1773351041374,-161.59385456,0.00016926,2]
[408283592,1773351041383,-500.0,0.00016926,2]
[408283593,1773351041393,-500.0,0.00016926,2]
[408283594,1773351041404,-500.0,0.00016926,2]
[408283595,1773351041414,-500.0,0.00016931,2]
[408283596,1773351041424,-500.0,0.00016931,2]
[408283597,1773351041434,-621.69234867,0.00016931,2]
[408283598,1773351041444,-500.0,0.00016931,2]
[408283599,1773351041454,-500.0,0.0001695,2]
[408283600,1773351041463,-500.0,0.0001695,2]
[408283601,1773351041474,-500.14102531,0.0001695,2]
[408283602,1773351041485,-150.0,0.00016962,2]
[408283603,1773351041495,-500.0,0.00016962,2]
[408283604,1773351041504,-554.83861542,0.00016962,2]
[408283605,1773351041514,-500.0,0.00016962,2]
[408283606,1773351041523,-500.0,0.00016962,2]
[408283607,1773351041533,-362.33399582,0.00016962,2]
[408283608,1773351041542,-150.51586392,0.00016962,2]
[408283609,1773351041552,-500.0,0.00016962,2]
[408283610,1773351041561,-250.0,0.00016962,2]
[408283611,1773351041571,-500.0,0.00016962,2]
[408283612,1773351041581,-500.0,0.00016962,2]
[408283613,1773351041590,-500.0,0.00016962,2]
[408283614,1773351041599,-520.0,0.00016962,2]
[408283615,1773351041610,-210.26061864,0.00016964,2]
[408283616,1773351041620,-168.16660661,0.00016964,2]
[408283617,1773351041630,-514.09272205,0.00016964,2]
[408283618,1773351041641,-502.44343779,0.00016964,2]
[408283619,1773351041650,-500.0,0.00016964,2]
[408283620,1773351041659,-500.0,0.00016964,2]
[408283621,1773351041669,-300.0,0.00017,2]
[408283622,1773351041678,-507.0,0.00017,2]
[408283623,1773351041688,-250.0,0.00017017,2]
[408283624,1773351041698,-500.0,0.00017017,2]
[408283625,1773351041708,-500.0,0.00017017,2]
[408283626,1773351041718,-500.0,0.00017017,2]
[408283627,1773351041728,-500.0,0.00017017,2]
[408283628,1773351041738,-500.0,0.00017017,2]
[408283629,1773351041748,-500.0,0.00017017,2]
[408283630,1773351041757,-500.0,0.00017017,2]
[408283631,1773351041767,-520.0,0.00017017,2]
[408283632,1773351041776,-500.0,0.00017072,2]
[408283633,1773351041788,-500.0,0.00017072,2]
[408283634,1773351041799,-500.0,0.00017072,2]
[408283635,1773351041810,-500.0,0.00017072,2]
[408283636,1773351041821,-500.0,0.00017072,2]
[408283637,1773351041833,-500.0,0.00017072,2]
[408283638,1773351041843,-556.26148538,0.00017072,2]
[408283639,1773351041852,-520.0,0.00017072,2]
[408283640,1773351041863,-2000.0,0.00017124,2]
[408283641,1773351041873,-500.0,0.00017127,2]
[408283642,1773351041882,-500.0,0.00017127,2]
[408283643,1773351041891,-500.0,0.00017127,2]
[408283644,1773351041900,-500.0,0.00017127,2]
[408283645,1773351041910,-500.0,0.00017127,2]
[408283646,1773351041919,-500.0,0.00017127,2]
[408283647,1773351041929,-520.0,0.00017127,2]
[408283648,1773351041938,-500.0,0.0001714,2]
[408283649,1773351041948,-991.61562808,0.0001714,2]
[408283650,1773351041957,-500.0,0.00017181,2]
[408283651,1773351041966,-336.58574152,0.00017181,2]
[408283652,1773351041976,-500.0,0.00017181,2]
[408283653,1773351041985,-500.0,0.00017181,2]
[408283654,1773351041995,-500.0,0.00017181,2]
[408283655,1773351042004,-520.0,0.00017181,2]
[408283656,1773351042013,-500.0,0.00017236,2]
[408283657,1773351042023,-267.0,0.00017236,2]
[408283658,1773351042032,-474.0,0.00017236,2]
[408283659,1773351042042,-500.0,0.00017236,2]
[408283660,1773351042051,-520.0,0.00017236,2]
[408283661,1773351042060,-500.0,0.00017291,2]
[408283662,1773351042069,-500.0,0.00017291,2]
[408283663,1773351042079,-520.0,0.00017291,2]
[408283664,1773351042088,-1176.23,0.00017291,2]
[408283665,1773351042097,-500.0,0.00017298,2]
[408283666,1773351042108,-1000.0,0.00017312,2]
[408283667,1773351042117,-3000.0,0.00017312,2]
[408283668,1773351042126,-308.0,0.00017325,2]
[408283670,1773351042135,-500.0,0.00017346,2]
[408283672,1773351042145,-500.0,0.00017346,2]
[408283674,1773351042154,-520.0,0.00017346,2]
[408283676,1773351042163,-166.66,0.00017372,2]
[408283677,1773351042172,-15776.64529517,0.00017379,2]
[408283678,1773351042182,-500.0,0.00017401,2]
[408283679,1773351042191,-450.0,0.00017401,2]
[408283680,1773351042200,-520.0,0.00017401,2]
[408283681,1773351042212,-152.17,0.00017402,2]
[408283682,1773351042222,-450.0,0.00017455,2]
[408283683,1773351042232,-520.0,0.00017455,2]
[408283684,1773351042243,-305.57091289,0.00017474,2]
[408283685,1773351042252,-501.01772395,0.00017479,2]
[408283686,1773351042261,-2351.0,0.00017482,2]
[408283687,1773351042270,-520.0,0.0001751,2]
[408283688,1773351042279,-500.0,0.00017512,2]
[408283689,1773351042288,-1183.81,0.00017552,2]
[408283690,1773351042297,-520.0,0.00017565,2]
[408283691,1773351042307,-500.0,0.00017589,2]
[408283692,1773351042316,-520.0,0.0001762,2]
[408283693,1773351042326,-2500.0,0.00017672,2]
[408283694,1773351042336,-520.0,0.00017675,2]
[408283695,1773351042346,-202.50075004,0.00017706,2]
[408283696,1773351042357,-299.99,0.00017728,4]
[408283697,1773351042368,-9999.99,0.00017728,2]
[408283698,1773351042377,-9999.99,0.00017728,2]
[408283699,1773351042386,-9999.99,0.00017728,2]
[408283700,1773351042396,-150.99,0.00017728,2]
[408283701,1773351042406,-150.99,0.00017728,2]
[408283702,1773351042416,-520.0,0.00017729,2]
[408283703,1773351042426,-520.0,0.00017784,2]
[408283704,1773351042438,-205.26,0.000178,2]
[408283705,1773351042447,-500.0,0.00017808,2]
[408283706,1773351042456,-800.0,0.00017808,2]
[408283707,1773351042466,-520.0,0.00017839,2]
[408283708,1773351042476,-500.0,0.00017863,2]
[408283709,1773351042485,-166.66,0.00017879,2]
[408283710,1773351042495,-222.07,0.00017884,2]
[408283711,1773351042505,-520.0,0.00017894,2]
[408283712,1773351042515,-1427.09814237,0.000179,2]
[408283713,1773351042524,-1427.09814236,0.000179,2]
[408283714,1773351042533,-1427.09814236,0.000179,2]
[408283715,1773351042543,-1427.09814236,0.000179,2]
[408283716,1773351042552,-500.0,0.00017918,2]